bitfinex-derivatives/quotes_SOLF0:USTF0_20250127
["timestamp","ask_amount","ask_price","bid_price","bid_amount"]
[1737980497871,0.0280159,224.88,224.84,0.03304241]
[1737980498171,0.0280159,224.88,224.87,4.4494]
[1737980498563,0.0280159,224.88,224.84,0.03304241]
[1737980498768,0.0280159,224.88,224.85,4.4496]
[1737980499064,0.0280159,224.88,224.84,0.03304241]
[1737980500172,0.0280159,224.88,224.86,4.4495]
[1737980500572,0.0280159,224.88,224.87,4.4494]
[1737980500871,16.70431467,225.02,224.84,0.03304241]
[1737980501073,4.4465,225.02,224.91,16.70431467]
[1737980501265,1.4561,225.03,224.91,16.70431467]
[1737980501669,1.4191,225.05,224.91,16.70431467]
[1737980502074,0.02933596,225.0,224.96,0.02898211]
[1737980502371,0.02933596,225.0,224.99,4.447]
[1737980503272,1.4073,225.1,224.96,0.02898211]
[1737980503475,5.8522,225.1,224.96,2.78718211]
[1737980503775,1.4073,225.1,224.96,2.7582]
[1737980504071,4.445,225.09,224.96,2.7582]
[1737980504473,0.02967501,225.05,225.0,0.02837765]
[1737980504874,16.70431467,225.13,224.97,4.4473]
[1737980505073,0.03241571,225.05,225.0,0.02998027]
[1737980505478,16.70431467,225.09,224.96,4.4476]
[1737980505774,0.0325504,225.05,225.0,0.03144959]
[1737980505970,16.70431467,225.09,225.0,0.03144959]
[1737980506274,0.02817141,225.05,225.0,0.03144959]
[1737980506474,4.47407141,225.05,224.87,2.7582]
[1737980506675,16.70431467,225.09,224.98,4.4471]
[1737980506876,4.446,225.05,224.98,4.4471]
[1737980507074,16.70431467,225.09,224.98,4.4471]
[1737980507378,16.70431467,225.09,224.95,4.4476]
[1737980507578,16.70431467,225.05,225.01,0.03254652]
[1737980507772,2.7789,225.04,224.87,1.3536]
[1737980508078,4.4477,224.96,224.89,4.4489]
[1737980508774,2.7789,225.04,224.87,1.3536]
[1737980509078,16.70431467,225.09,224.9,16.7379914]
[1737980509281,16.70431467,225.09,224.91,1.3395]
[1737980509478,16.70431467,225.13,224.94,16.70431467]
[1737980509679,4.4453,225.08,225.0,4.4467]
[1737980509879,16.70431467,225.13,224.95,1.3662]
[1737980510179,0.0288144,225.06,225.02,0.03177085]
[1737980511877,4.4462,225.03,225.02,0.03177085]
[1737980514284,4.4746144,225.06,225.02,0.03177085]
[1737980514478,0.0288144,225.06,225.02,0.03177085]
[1737980514782,4.4458,225.05,225.02,0.03177085]
[1737980514979,0.0288144,225.06,225.02,0.03177085]
[1737980515882,0.0288144,225.06,225.04,4.446]
[1737980517284,0.0288144,225.06,225.02,0.03177085]
[1737980517480,0.0288144,225.06,225.03,4.4462]
[1737980517785,0.0288144,225.06,225.02,0.03177085]
[1737980517984,0.0288144,225.06,225.04,4.4459]
[1737980519079,4.4458,225.05,225.02,0.03177085]
[1737980519279,0.0288144,225.06,225.02,0.03177085]
[1737980519774,4.4462,225.03,225.02,0.03177085]
[1737980519979,0.0288144,225.06,225.02,0.03177085]
[1737980520182,0.0288144,225.06,225.05,4.4458]
[1737980520381,0.0288144,225.06,225.02,0.03177085]
[1737980523090,0.0288144,225.06,225.05,4.4458]
[1737980523285,1.44e-05,225.06,225.05,4.4458]
[1737980523484,2.7168,225.14,225.05,16.70431467]
[1737980523686,2.7168,225.14,225.13,4.4443]
[1737980523885,19.72431467,225.29,225.09,16.70431467]
[1737980524185,16.70431467,225.21,225.1,4.4448]
[1737980524578,16.70431467,225.21,225.01,16.70431467]
[1737980524780,0.03180845,225.18,225.13,0.0321954]
[1737980525082,0.03180845,225.18,224.99,3.02]
[1737980525083,0.033487,225.18,225.09,16.70431467]
[1737980525288,4.2181,225.28,225.13,16.73484416]
[1737980525582,1.4593,225.28,225.17,16.70431467]
[1737980525786,1.4562,225.32,225.17,16.70431467]
[1737980525993,1.4562,225.32,225.28,4.4412]
[1737980526292,1.4646,225.34,225.28,4.4412]
[1737980526489,0.02866418,225.32,225.28,4.47257467]
[1737980526687,0.02866418,225.32,225.28,0.03137467]
[1737980527792,0.02866418,225.32,225.3,4.4408]
[1737980529989,0.02866418,225.32,225.28,0.03137467]
[1737980530991,0.02866418,225.32,225.3,4.4407]
[1737980531199,1.4562,225.4,225.31,16.70431467]
[1737980531493,1.4646,225.43,225.35,16.70431467]
[1737980531692,1.3528,225.42,225.35,16.70431467]
[1737980531892,16.70431467,225.5,225.31,16.70431467]
[1737980532097,1.3528,225.49,225.31,16.70431467]
[1737980532296,4.4389,225.41,225.34,4.44]
[1737980532497,0.03108645,225.42,225.38,0.03158832]
[1737980532699,4.4394,225.38,225.31,4.4407]
[1737980532891,4.4394,225.38,225.27,16.70431467]
[1737980533095,16.70431467,225.46,225.32,0.03282514]
[1737980533292,0.03270245,225.35,225.33,4.4403]
[1737980533498,16.70431467,225.46,225.37,0.03392682]
[1737980533696,16.70431467,225.46,225.33,4.4403]
[1737980533697,4.4389,225.41,225.35,4.4399]
[1737980533897,0.03225517,225.44,225.39,0.03397035]
[1737980534196,4.4382,225.44,225.36,4.4396]
[1737980534403,0.02897119,225.44,225.39,0.03054021]
[1737980536105,4.4389,225.4,225.39,0.03054021]
[1737980537099,0.02897119,225.44,225.39,0.03054021]
[1737980537303,4.46727119,225.44,225.39,0.03054021]
[1737980537509,0.02897119,225.44,225.39,0.03054021]
[1737980537703,4.4389,225.41,225.39,0.03054021]
[1737980538604,0.02897119,225.44,225.39,0.03054021]
[1737980538904,4.4385,225.43,225.39,0.03054021]
[1737980539205,4.4385,225.42,225.39,0.03054021]
[1737980539406,0.02897119,225.44,225.39,0.03054021]
[1737980541110,4.4389,225.4,225.39,0.03054021]
[1737980542509,0.02897119,225.44,225.39,0.03054021]
[1737980543212,4.4389,225.4,225.39,0.03054021]
[1737980551010,16.70431467,225.42,225.24,4.4419]
[1737980551011,4.4411,225.29,225.24,4.4419]
[1737980551214,16.70431467,225.38,225.2,16.70431467]
[1737980551716,4.4409,225.3,225.25,4.4417]
[1737980552116,16.70431467,225.42,225.2,16.70431467]
[1737980552415,0.0287719,225.3,225.29,4.4409]
[1737980552617,16.70431467,225.42,225.2,16.70431467]
[1737980552812,0.02823805,225.32,225.27,0.02805886]
[1737980553015,16.70431467,225.42,225.28,4.4412]
[1737980553315,0.03162916,225.32,225.28,4.4412]
[1737980553508,16.70431467,225.42,225.28,4.4412]
[1737980553712,0.03247904,225.32,225.28,4.47434323]
[1737980553913,16.70431467,225.42,225.28,4.4412]
[1737980554111,0.02794704,225.32,225.28,4.47430697]
[1737980554311,16.70431467,225.42,225.2,16.70431467]
[1737980554516,0.03233623,225.32,225.28,0.03165996]
[1737980554810,16.70431467,225.38,225.2,16.70431467]
[1737980555014,0.03043961,225.32,225.28,0.03167455]
[1737980555517,16.70431467,225.46,225.34,4.4401]
[1737980555717,16.70431467,225.46,225.25,16.70431467]
[1737980556618,4.4398,225.36,225.33,0.03095022]
[1737980556818,0.033623,225.38,225.33,0.03095022]
[1737980557418,4.4401,225.34,225.33,0.03095022]
[1737980558819,4.4412,225.29,225.24,4.4421]
[1737980559318,16.70431467,225.38,225.17,16.70431467]
[1737980559823,0.02888959,225.3,225.25,0.03361875]
[1737980560119,16.70431467,225.29,225.25,0.03361875]
[1737980560820,4.4417,225.26,225.25,0.03361875]
[1737980562419,4.4417,225.26,225.25,1.875e-05]
[1737980562824,4.4436,225.17,225.05,16.70431467]
[1737980563325,4.4436,225.17,225.11,4.4446]
[1737980563825,16.70431467,225.24,225.05,16.70431467]
[1737980564027,0.03325534,225.16,225.12,4.47724948]
[1737980565927,4.4439,225.15,225.12,0.03284948]
[1737980566123,0.03325534,225.16,225.12,0.03284948]
[1737980566527,4.4443,225.13,225.12,0.03284948]
[1737980567722,0.03325534,225.16,225.12,0.03284948]
[1737980568629,0.03325534,225.16,225.15,4.4439]
[1737980569529,0.03325534,225.16,225.13,4.4441]
[1737980569729,0.03325534,225.16,225.12,0.03284948]
[1737980571133,0.03325534,225.16,225.13,4.4442]
[1737980571434,0.03325534,225.16,225.12,0.03284948]
[1737980571633,4.4443,225.13,225.12,0.03284948]
[1737980575039,4.4443,225.13,225.12,4.948e-05]
[1737980576438,0.03325534,225.16,225.12,4.948e-05]
[1737980577242,4.4443,225.13,225.12,4.948e-05]
[1737980578042,4.4441,225.14,225.12,4.948e-05]
[1737980578541,4.4443,225.13,225.12,4.948e-05]
[1737980579338,0.03325534,225.16,225.12,4.948e-05]
[1737980579538,4.4441,225.15,225.12,4.948e-05]
[1737980579942,0.03325534,225.16,225.12,4.948e-05]
[1737980580138,4.4441,225.14,225.12,4.948e-05]
[1737980580442,0.03325534,225.16,225.12,4.948e-05]
[1737980580740,4.4441,225.14,225.12,4.948e-05]
[1737980581945,4.4443,225.13,225.12,4.948e-05]
[1737980584548,10.42929605,225.13,224.95,83.06]
[1737980584748,10.42929605,225.09,224.94,10.42929605]
[1737980585646,0.03272806,225.04,224.99,0.03378835]
[1737980585846,0.03272806,225.04,225.01,4.4466]
[1737980586047,0.03272806,225.04,225.0,10.42929605]
[1737980586248,0.03272806,225.04,224.99,0.03378835]
[1737980586249,2.806e-05,225.04,225.03,10.42929605]
[1737980586747,4.4442,225.14,225.09,4.445]
[1737980586949,3.02,225.19,225.06,10.42929605]
[1737980587345,4.4435,225.17,225.11,4.4445]
[1737980587848,4.4435,225.17,225.06,10.42929605]
[1737980588050,0.02850736,225.16,225.12,4.4739506]
[1737980588254,0.02850736,225.16,225.12,0.0295506]
[1737980588449,0.02850736,225.16,225.12,10.45884665]
[1737980588652,4.4413,225.29,225.15,10.42929605]
[1737980588946,11.82799605,225.36,225.22,10.42929605]
[1737980589151,4.4402,225.34,225.27,4.4414]
[1737980589349,11.82799605,225.36,225.22,10.42929605]
[1737980589752,4.4406,225.32,225.23,4.4422]
[1737980589947,0.0333457,225.31,225.27,0.0336588]
[1737980591646,4.4412,225.29,225.27,0.0336588]
[1737980591844,4.4412,225.29,225.27,0.00246481]
[1737980593345,4.4421,225.24,225.23,1.3336]
[1737980593545,16.64619436,225.25,225.08,4.4451]
[1737980593752,16.64619436,225.25,225.05,16.64619436]
[1737980594749,4.47629634,225.19,225.14,0.03392403]
[1737980594949,0.03309634,225.19,225.14,0.03392403]
[1737980595854,4.4439,225.15,225.14,0.03392403]
[1737980596755,0.03309634,225.19,225.14,0.03392403]
[1737980596959,4.47639634,225.19,225.14,0.03392403]
[1737980597554,0.03309634,225.19,225.14,0.03392403]
[1737980598857,0.03309634,225.19,225.15,4.4437]
[1737980599057,0.03309634,225.19,225.14,0.03392403]
[1737980599661,0.03309634,225.19,225.15,4.4439]
[1737980600159,0.03309634,225.19,225.14,0.03392403]
[1737980600359,16.64619436,225.32,225.14,0.03392403]
[1737980600561,16.64619436,225.4,225.22,16.64619436]
[1737980600758,18.04489436,225.36,225.14,16.64619436]
[1737980601058,4.4418,225.26,225.14,16.64619436]
[1737980601258,18.04489436,225.36,225.14,16.64619436]
[1737980601459,0.03391193,225.22,225.2,4.4428]
[1737980601659,18.04489436,225.36,225.14,16.64619436]
[1737980601857,0.02921696,225.23,225.19,0.03213893]
[1737980602157,4.4416,225.27,225.1,16.64619436]
[1737980602460,0.03334276,225.23,225.19,4.47090144]
[1737980602655,4.4417,225.27,225.19,4.47090144]
[1737980602860,0.03373687,225.23,225.19,4.47090144]
[1737980603059,16.64619436,225.32,225.19,4.47090144]
[1737980603259,0.0336776,225.23,225.19,4.47090144]
[1737980603561,16.64619436,225.28,225.19,0.02800144]
[1737980603860,4.4435,225.18,225.06,16.64619436]
[1737980604159,16.64619436,225.24,225.06,16.64619436]
[1737980604560,4.4437,225.16,225.1,4.4448]
[1737980604760,16.64619436,225.24,225.1,4.4448]
[1737980605158,4.4434,225.18,225.15,0.0333596]
[1737980605760,4.4437,225.16,225.15,0.0333596]
[1737980606564,0.03149997,225.19,225.15,0.0333596]
[1737980606761,4.4435,225.18,225.15,0.0333596]
[1737980607662,0.03149997,225.19,225.15,0.0333596]
[1737980608560,0.03149997,225.19,225.18,4.4433]
[1737980609358,1.3987,225.36,225.15,0.0333596]
[1737980609359,18.04489436,225.36,225.15,0.0333596]
[1737980609563,1.3987,225.36,225.18,16.64619436]
[1737980609861,18.04489436,225.36,225.14,16.64619436]
[1737980610065,16.64619436,225.32,225.14,16.64619436]
[1737980610664,0.02952041,225.25,225.21,0.02865679]
[1737980612265,0.02952041,225.25,225.06,16.64619436]
[1737980612466,16.64619436,225.28,225.06,16.64619436]
[1737980612767,4.4433,225.18,225.06,16.64619436]
[1737980613066,16.64619436,225.24,225.06,16.64619436]
[1737980613266,16.64619436,225.24,225.14,4.444]
[1737980613467,0.03018625,225.17,225.14,4.444]
[1737980613666,0.03018625,225.17,225.13,4.47588882]
[1737980614167,0.03018625,225.17,225.14,4.444]
[1737980614567,0.03018625,225.17,225.13,0.03178882]
[1737980614768,0.03018625,225.17,225.13,4.47598882]
[1737980614967,0.03018625,225.17,225.13,0.03178882]
[1737980615673,0.03018625,225.17,225.14,4.4439]
[1737980617276,0.03018625,225.17,225.16,4.4437]
[1737980618871,0.03018625,225.17,225.13,0.03178882]
[1737980619178,0.03018625,225.17,225.15,4.4439]
[1737980619377,0.03018625,225.17,225.13,0.03178882]
[1737980619576,4.47378625,225.17,225.13,0.03178882]
[1737980619773,0.03018625,225.17,225.13,0.03178882]
[1737980620878,4.47368625,225.17,225.13,0.03178882]
[1737980621478,4.47368625,225.17,225.13,4.47598882]
[1737980622278,0.03018625,225.17,225.13,0.03178882]
[1737980622480,0.03018625,225.17,225.15,4.4438]
[1737980622676,0.03018625,225.17,225.13,0.03178882]
[1737980623080,0.03018625,225.17,225.16,4.4437]
[1737980624080,8.625e-05,225.17,225.16,4.4437]
[1737980624275,5.7734,225.3,225.18,4.4431]
[1737980624471,1.3269,225.31,225.19,1.4368]
[1737980624880,4.4412,225.29,225.24,4.442]
[1737980625275,1.3269,225.31,225.24,4.442]
[1737980625476,4.47218399,225.29,225.24,4.47337183]
[1737980626180,0.03108399,225.29,225.25,4.4418]
[1737980626381,0.03108399,225.29,225.24,0.03137183]
[1737980627276,4.4415,225.27,225.24,0.03137183]
[1737980627583,0.03108399,225.29,225.24,0.03137183]
[1737980628080,4.4416,225.27,225.24,0.03137183]
[1737980628382,0.03108399,225.29,225.24,0.03137183]
[1737980628576,0.03108399,225.29,225.24,4.47337183]
[1737980628877,0.03108399,225.29,225.24,0.03137183]
[1737980629079,0.03108399,225.29,225.26,4.4417]
[1737980629380,0.03108399,225.29,225.24,0.03137183]
[1737980629572,0.03108399,225.29,225.28,4.4413]
[1737980630579,0.03108399,225.29,225.26,4.4417]
[1737980630782,0.03108399,225.29,225.24,0.03137183]
[1737980632282,0.03108399,225.29,225.28,4.4413]
[1737980632482,17.97079436,225.43,225.24,0.03137183]
[1737980632676,10.39958142,225.41,225.26,10.39958142]
[1737980632884,1.4047,225.42,225.29,10.39958142]
[1737980633285,4.4393,225.38,225.34,4.4399]
[1737980633583,1.4047,225.42,225.29,10.39958142]
[1737980633782,0.02820309,225.38,225.34,0.03137497]
[1737980634084,0.02820309,225.38,225.35,4.4399]
[1737980634385,0.02820309,225.38,225.34,0.03137497]
[1737980636485,0.02820309,225.38,225.37,4.4395]
[1737980638384,0.02820309,225.38,225.34,0.03137497]
[1737980639087,0.02820309,225.38,225.35,4.4397]
[1737980639385,0.02820309,225.38,225.34,0.03137497]
[1737980640085,0.02820309,225.38,225.36,4.4397]
[1737980640385,0.02820309,225.38,225.34,0.03137497]
[1737980641485,0.02820309,225.38,225.35,4.4399]
[1737980642487,4.4397,225.36,225.34,0.03137497]
[1737980642682,0.02820309,225.38,225.34,0.03137497]
[1737980643090,4.4411,225.29,225.24,4.4421]
[1737980643390,16.63676289,225.37,225.19,1.3788]
[1737980643986,1.457,225.36,225.19,1.3788]
[1737980644188,4.47112328,225.3,225.26,0.03245145]
[1737980644583,0.03012328,225.3,225.26,0.03245145]
[1737980645785,16.63676289,225.29,225.13,16.63676289]
[1737980646690,4.4419,225.25,225.17,4.4433]
[1737980646894,0.03242999,225.23,225.19,0.03359559]
[1737980647391,0.03242999,225.23,225.22,4.4425]
[1737980648088,0.03242999,225.23,225.19,0.03359559]
[1737980648791,4.4428,225.21,225.19,0.03359559]
[1737980649085,0.03242999,225.23,225.19,0.03359559]
[1737980651289,0.03242999,225.23,225.09,16.63676289]
[1737980651490,16.63676289,225.18,224.98,2.7871]
[1737980651690,16.63676289,225.14,224.99,0.79985617]
[1737980651990,16.63676289,225.14,224.98,3.6760679]
[1737980652288,4.4447,225.11,225.02,4.4463]
[1737980652487,0.03379278,225.08,224.98,3.6760679]
[1737980652694,0.03379278,225.08,225.04,0.03005354]
[1737980653696,0.03379278,225.08,225.05,4.4458]
[1737980654898,0.03379278,225.08,225.04,0.03005354]
[1737980656598,0.03379278,225.08,225.04,4.47595354]
[1737980656798,0.03379278,225.08,225.04,0.03005354]
[1737980657999,4.4455,225.07,225.04,0.03005354]
[1737980658398,0.03379278,225.08,225.04,0.03005354]
[1737980659401,16.63676289,225.06,224.97,4.4472]
[1737980659601,16.63676289,225.06,224.88,1.4347]
[1737980659801,4.4466,225.01,224.95,4.4477]
[1737980660101,16.63676289,225.06,224.88,1.4347]
[1737980660402,4.4461,225.04,224.88,1.4347]
[1737980660601,0.03195917,224.99,224.95,0.02788281]
[1737980661300,5.917e-05,224.99,224.95,16.6646457]
[1737980661501,5.917e-05,224.99,224.98,4.4472]
[1737980664507,5.917e-05,224.99,224.96,4.4476]
[1737980664707,5.917e-05,224.99,224.95,0.02788281]
[1737980665305,5.917e-05,224.99,224.97,4.4474]
[1737980665607,5.917e-05,224.99,224.95,0.02788281]
[1737980665808,4.44725917,224.99,224.95,0.02788281]
[1737980666810,4.4472,224.98,224.95,0.02788281]
[1737980667011,5.917e-05,224.99,224.95,0.02788281]
[1737980667309,5.917e-05,224.99,224.95,4.47558281]
[1737980667510,4.44715917,224.99,224.95,4.47558281]
[1737980667710,5.917e-05,224.99,224.95,0.02788281]
[1737980667915,5.917e-05,224.99,224.98,4.4472]
[1737980669307,1.4658,225.16,224.98,4.4472]
[1737980669507,1.3808,225.15,225.08,4.4451]
[1737980669804,1.3808,225.15,224.96,1.916]
[1737980670009,16.63676289,225.13,225.05,4.4458]
[1737980670208,16.63676289,225.13,224.96,1.916]
[1737980670407,4.4455,225.07,224.96,1.4052]
[1737980670606,4.47941617,225.07,225.03,4.4462]
[1737980671212,0.03391617,225.07,225.02,0.02907073]
[1737980671413,4.4458,225.06,225.02,4.47547073]
[1737980671812,4.4464,225.03,224.97,4.4474]
[1737980672012,19.44356289,225.05,224.88,1.3782]
[1737980672715,4.4466,225.01,224.96,4.4475]
[1737980673008,0.03385028,224.99,224.96,4.4475]
[1737980673513,0.03385028,224.99,224.94,0.02808542]
[1737980673710,0.03385028,224.99,224.97,4.4474]
[1737980673906,0.03385028,224.99,224.94,0.02808542]
[1737980675216,0.03385028,224.99,224.98,4.4472]
[1737980678316,0.03385028,224.99,224.94,0.02808542]
[1737980678514,4.4473,224.98,224.94,4.47598542]
[1737980678815,4.4473,224.98,224.94,0.02808542]
[1737980679008,0.03385028,224.99,224.94,0.02808542]
[1737980679614,4.4474,224.98,224.94,0.02808542]
[1737980679915,0.03385028,224.99,224.94,0.02808542]
[1737980681118,0.03385028,224.99,224.98,4.4472]
[1737980685020,0.03385028,224.99,224.94,0.02808542]
[1737980685217,4.48105028,224.99,224.96,4.4476]
[1737980686612,0.03385028,224.99,224.94,0.02808542]
[1737980686922,4.4474,224.97,224.94,0.02808542]
[1737980687117,0.03385028,224.99,224.94,0.02808542]
[1737980687316,4.4478,224.96,224.94,0.02808542]
[1737980687718,0.03385028,224.99,224.94,0.02808542]
[1737980688019,0.03385028,224.99,224.8,16.63676289]
[1737980688324,16.63676289,225.01,224.82,1.465]
[1737980688520,4.4482,224.94,224.88,4.4492]
[1737980688920,16.63676289,224.97,224.82,1.465]
[1737980689326,0.0284639,224.92,224.82,1.465]
[1737980689728,0.0284639,224.92,224.91,4.4486]
[1737980691726,0.0284639,224.92,224.82,1.465]
[1737980692222,0.0284639,224.92,224.91,4.4486]
[1737980693322,0.0284639,224.92,224.82,1.465]
[1737980693528,0.0284639,224.92,224.89,4.4488]
[1737980694529,0.0284639,224.92,224.87,4.4492]
[1737980694823,0.0284639,224.92,224.82,1.465]
[1737980696031,4.4488,224.91,224.86,4.4494]
[1737980696532,0.0284639,224.92,224.86,4.4494]
[1737980696731,4.4488,224.9,224.86,4.4494]
[1737980697033,0.0284639,224.92,224.86,4.4494]
[1737980697326,4.4487,224.91,224.86,4.4494]
[1737980697531,0.0284639,224.92,224.82,1.465]
[1737980698232,0.0284639,224.92,224.85,4.4498]
[1737980698433,0.0284639,224.92,224.82,1.465]
[1737980698731,0.0284639,224.92,224.84,16.63676289]
[1737980698933,0.0284639,224.92,224.91,4.4486]
[1737980699833,16.63676289,225.1,224.88,16.63676289]
[1737980700034,1.323,225.09,224.94,16.63676289]
[1737980700333,1.323,225.09,225.06,4.4456]
[1737980700832,1.4415,225.11,225.06,4.4456]
[1737980701029,0.02993083,225.1,225.06,4.4456]
[1737980701536,0.02993083,225.1,225.05,0.0282228]
[1737980705143,4.4451,225.09,225.05,0.0282228]
[1737980705337,0.02993083,225.1,225.05,0.0282228]
[1737980705740,191.0,225.34,225.05,0.0282228]
[1737980705741,1.3235,225.2,225.05,16.66498569]
[1737980706035,1.3235,225.2,225.01,16.63676289]
[1737980706237,16.63676289,225.18,225.02,0.79980449]
[1737980706443,16.63676289,225.18,225.0,3.02]
[1737980706642,4.4448,225.11,225.04,4.446]
[1737980706941,0.03377927,225.11,225.07,0.0337454]
[1737980707137,0.03377927,225.11,224.99,1.3309]
[1737980707735,16.63676289,225.1,224.91,16.63676289]
[1737980707943,16.63676289,225.06,224.92,0.80013427]
[1737980708242,16.63676289,225.06,224.85,1.9745]
[1737980708444,0.03386601,225.01,224.97,0.02733516]
[1737980708643,4.4471,224.99,224.97,0.02733516]
[1737980709143,4.4468,225.0,224.97,0.02733516]
[1737980709936,0.03386601,225.01,224.97,0.02733516]
[1737980711244,0.03386601,225.01,224.97,4.47473516]
[1737980711542,0.03386601,225.01,224.97,0.02733516]
[1737980711844,4.48056601,225.01,224.97,0.02733516]
[1737980712236,0.03386601,225.01,224.97,0.02733516]
[1737980712743,0.03386601,225.01,224.85,1.4377]
[1737980712943,1.3376,225.01,224.85,1.4377]
[1737980713842,0.03049396,224.95,224.85,1.4377]
[1737980715246,0.03049396,224.95,224.89,4.449]
[1737980716146,4.47829396,224.95,224.89,4.449]
[1737980716440,0.03049396,224.95,224.89,4.449]
[1737980716646,0.03049396,224.95,224.88,4.4492]
[1737980717245,0.03049396,224.95,224.85,1.4377]
[1737980717445,4.448,224.94,224.89,4.4489]
[1737980717739,0.03049396,224.95,224.82,11.83827258]
[1737980717944,4.4483,224.93,224.86,4.4496]
[1737980718147,0.02976996,224.91,224.82,11.83827258]
[1737980718643,4.47846996,224.91,224.82,11.83827258]
[1737980718846,0.02976996,224.91,224.82,11.83827258]
[1737980719346,0.02976996,224.91,224.89,4.449]
[1737980720347,0.02976996,224.91,224.9,4.4488]
[1737980721349,1.3376,225.01,224.88,10.43947258]
[1737980721550,10.43947258,225.03,224.88,10.43947258]
[1737980721848,10.43947258,225.06,224.91,10.43947258]
[1737980722249,10.43947258,225.06,224.92,1.4251]
[1737980722449,4.4461,225.04,224.92,1.4251]
[1737980722651,0.03319861,225.01,224.98,4.447]
[1737980722950,0.03319861,225.01,224.96,0.02976996]
[1737980723251,10.43947258,225.12,224.97,10.43947258]
[1737980723550,4.4449,225.1,224.95,10.43947258]
[1737980723741,10.43947258,225.12,224.95,10.43947258]
[1737980724051,4.4454,225.08,224.95,10.43947258]
[1737980724345,0.02923808,225.04,225.01,4.4465]
[1737980724546,0.02923808,225.04,224.99,0.02843206]
[1737980724746,4.4465,225.02,224.92,1.4251]
[1737980724942,0.0327652,225.04,224.99,0.03305275]
[1737980725146,4.4466,225.01,224.99,0.03305275]
[1737980725650,0.03031496,225.04,224.99,0.03305275]
[1737980726350,4.4468,225.0,224.99,0.03305275]
[1737980726648,2.7259,225.03,224.86,4.4613]
[1737980726849,4.1536,225.03,224.86,4.4613]
[1737980727242,4.1536,225.03,224.85,1.4641]
[1737980727243,16.68788029,225.01,224.85,1.4641]
[1737980727652,0.03016125,224.95,224.91,0.02887032]
[1737980727951,0.03016125,224.95,224.92,4.4483]
[1737980728252,0.03016125,224.95,224.91,0.02887032]
[1737980728752,4.47806125,224.95,224.91,0.02887032]
[1737980730152,0.03016125,224.95,224.91,0.02887032]
[1737980730652,0.03016125,224.95,224.91,4.47737032]
[1737980731655,0.03016125,224.95,224.91,0.02887032]
[1737980732152,4.47816125,224.95,224.91,0.02887032]
[1737980733058,4.4481,224.94,224.91,0.02887032]
[1737980733254,0.03016125,224.95,224.91,0.02887032]
[1737980734154,0.03016125,224.95,224.82,4.4502]
[1737980734355,0.03016125,224.95,224.81,1.442]
[1737980734553,16.68788029,224.97,224.81,1.442]
[1737980734754,4.4486,224.92,224.87,4.4493]
[1737980735349,4.47971836,224.92,224.81,1.442]
[1737980735957,0.03111836,224.92,224.81,1.442]
[1737980736152,0.03111836,224.92,224.84,16.68788029]
[1737980736658,0.03111836,224.92,224.91,4.4486]
[1737980737457,2.7259,225.03,224.84,16.68788029]
[1737980737758,1.3657,225.03,224.89,16.68788029]
[1737980737958,1.3657,225.03,224.9,0.80035786]
[1737980738158,1.3657,225.03,225.0,4.4466]
[1737980738552,1.3657,225.03,224.99,4.447]
[1737980738758,1.3657,225.03,224.99,4.47916386]
[1737980739253,1.3657,225.03,224.99,0.03216386]
[1737980739760,0.02801323,225.04,224.99,0.03216386]
[1737980739959,0.02801323,225.04,225.03,4.4462]
[1737980740961,0.02801323,225.04,224.99,0.03216386]
[1737980744059,4.4464,225.02,224.99,0.03216386]
[1737980745158,4.4466,225.01,224.99,0.03216386]
[1737980746368,4.4464,225.02,224.99,0.03216386]
[1737980749165,0.02801323,225.04,224.99,0.03216386]
[1737980749371,0.02801323,225.04,225.03,4.4462]
[1737980750571,0.02801323,225.04,225.02,4.4464]
[1737980751374,0.02801323,225.04,224.99,0.03216386]
[1737980751672,0.02801323,225.04,225.03,4.4462]
[1737980754871,1.323e-05,225.04,225.03,4.4462]
[1737980756073,5.8761,225.19,225.03,3.81977035]
[1737980756276,5.8761,225.19,225.07,16.68788029]
[1737980756576,4.4434,225.18,225.1,4.4447]
[1737980756777,1.4328,225.19,225.07,16.68788029]
[1737980757180,0.03352452,225.15,225.12,4.4443]
[1737980757474,0.03352452,225.15,225.11,0.03406278]
[1737980759383,4.4443,225.13,225.11,0.03406278]
[1737980760082,0.03352452,225.15,225.11,0.03406278]
[1737980761085,4.47742452,225.15,225.11,4.47856278]
[1737980761586,4.47742452,225.15,225.11,0.03406278]
[1737980761787,0.03352452,225.15,225.14,4.4441]
[1737980761988,2.452e-05,225.15,225.14,4.4441]
[1737980762483,2.452e-05,225.15,225.12,4.4444]
[1737980762885,4.4441,225.14,225.11,4.47866278]
[1737980766088,4.44392452,225.15,225.11,4.47866278]